Cogmind - Beta 16 @@@ ROGUE MODE // 2025.12.04 @ 15:59:01 Player: C0-2MO Result: Escaped! Performance ------------- Evolutions (9) 4500 Regions Visited (14) 2800 Robots Destroyed (8) 40 Value Destroyed (180) 180 Prototype IDs (4) 80 Alien Tech Used (0) 0 Bonus (21532) 21532 TOTAL SCORE: 29132 Bonus ------- Follower Combat Kills 110 Entered Garrisons 200 Entered DSFs 1000 Win 3000 Win Speed 17222 Cogmind --------- Core Integrity 1553/1600 Matter 199/300 Energy 254/260 System Corruption 0% Temperature Cool (12) Movement Flying (33) Location To Epsilon Eridani Parts ------- > --- POWER (2) -------- Light Particle Reactor Light Particle Reactor > --- PROPULSION (12) -- Improved Linear Gravjet Combat Antigrav System Combat Antigrav System Combat Antigrav System Field Propulsion Drive Impulse Thruster Field Propulsion Array Impulse Thruster Array > --- UTILITY (9) ------ Structural Scanner Advanced Sensor Array Advanced Signal Interpreter Improved Melee Analysis Suite Improved Power Shielding Drone Bay (0/2) > --- WEAPON (2) ------- Greatsword > --- INVENTORY (5) ---- Enhanced Nova Cannon Enhanced Gauss Cannon Greatsword Peak State ------------ > --- POWER ------------ Particle Reactor Light Particle Reactor > --- PROPULSION ------- Combat Antigrav System Combat Antigrav System Combat Antigrav System Combat Antigrav System Field Propulsion Drive Impulse Thruster Field Propulsion Array Field Propulsion Array Impulse Thruster Array > --- UTILITY ---------- Structural Scanner Advanced Sensor Array Advanced Signal Interpreter Improved Melee Analysis Suite Improved Power Shielding Drone Bay > --- WEAPON ----------- Greatsword > --- INVENTORY -------- Enhanced Nova Cannon Enhanced Gauss Cannon Greatsword [Rating: 138] Favorites ----------- Power Fusion Compressor Engine Light Ion Engine Power Core Fusion Compressor Reactor Particle Reactor Propulsion Field Propulsion Array Treads Light Treads Hover Unit Combat Antigrav System Flight Unit Field Propulsion Array Utility Signal Interpreter Device Advanced Sensor Array Processor Signal Interpreter Hackware System Shield Protection Improved Power Shielding Weapon Maul Energy Gun Backup Laser III Ballistic Gun Light Assault Rifle Ballistic Cannon Hardcell Cannon Impact Weapon Maul Slashing Weapon Greatsword Piercing Weapon Lance Build | -11 -10 -9 -8 -7 -6 -6 -5 -4 -3 -3 -3 -2 -2 -1 ------- Run | Yrd Mat Mat Mat Fac Fac DSF Fac Fac Res Gar Res Res DSF Acc Slots Evolved 18 | . . 2 2 2 2 . 2 2 2 . . 2 . 2 Power 1 | . . . . . 1 . . . . . . . . . Propulsion 10 | . . 1 2 1 1 . 1 . 2 . . 2 . . Utility 7 | . . 1 . 1 . . 1 2 . . . . . 2 Weapon . | . . . . . . . . . . . . . . . Parts Attached 60 | 2 3 4 1 1 . 2 16 5 3 5 5 1 4 8 Power 7 | . . 1 . . . . 1 1 . 1 1 . . 2 Engine 1 | . . 1 . . . . . . . . . . . . Core 3 | . . . . . . . 1 1 . 1 . . . . Reactor 3 | . . . . . . . . . . . 1 . . 2 Propulsion 32 | 1 2 1 . . . . 9 4 1 4 3 . 4 3 Treads 1 | 1 . . . . . . . . . . . . . . Leg . | . . . . . . . . . . . . . . . Wheel . | . . . . . . . . . . . . . . . Hover 10 | . . . . . . . 5 . . . . . 4 1 Flight 21 | . 2 1 . . . . 4 4 1 4 3 . . 2 Utility 14 | . . 2 1 1 . 2 4 . 1 . . 1 . 2 Device 6 | . . 1 . . . 1 1 . 1 . . . . 2 Storage . | . . . . . . . . . . . . . . . Processor 4 | . . 1 . . . 1 2 . . . . . . . Hackware 2 | . . . 1 . . . 1 . . . . . . . Protection 2 | . . . . 1 . . . . . . . 1 . . Artifact . | . . . . . . . . . . . . . . . Weapon 7 | 1 1 . . . . . 2 . 1 . 1 . . 1 Energy Gun . | . . . . . . . . . . . . . . . Energy Cannon . | . . . . . . . . . . . . . . . Ballistic Gun 1 | 1 . . . . . . . . . . . . . . Ballistic Cannon 3 | . . . . . . . 1 . 1 . . . . 1 Launcher . | . . . . . . . . . . . . . . . Special Weapon . | . . . . . . . . . . . . . . . Impact Weapon 1 | . 1 . . . . . . . . . . . . . Slashing Weapon 1 | . . . . . . . . . . . 1 . . . Piercing Weapon 1 | . . . . . . . 1 . . . . . . . Special Melee Weapon . | . . . . . . . . . . . . . . . Unidentified Prototypes 2 | . . . . . . . . . 1 . . . . 1 Parts Lost 32 | . 1 . 1 8 . . 5 . 1 13 . . 1 2 Power 5 | . . . 1 1 . . . . 1 2 . . . . Propulsion 20 | . . . . 5 . . 4 . . 8 . . 1 2 Utility 5 | . . . . 2 . . . . . 3 . . . . Weapon 2 | . 1 . . . . . 1 . . . . . . . Highest Loss Streak 13 | . 1 . 1 6 . . 5 . 1 13 . . 1 2 To Critical Strikes . | . . . . . . . . . . . . . . . Average Backups 2 | . . . . 1 2 2 3 3 2 3 2 2 2 2 Power . | . . . . 1 1 1 1 . . . . . . . Propulsion . | . . . . . . . . 1 1 2 . . . . Utility . | . . . . . . . . . . . . . . . Weapon 1 | . . . . . 1 1 1 1 1 1 1 2 2 2 Tool/Special . | . . . . . . . . . . . . . . . Unused Backups 2 | . . . . . . . . . . . . . . 2 Power . | . . . . . . . . . . . . . . . Propulsion . | . . . . . . . . . . . . . . . Utility . | . . . . . . . . . . . . . . . Weapon 2 | . . . . . . . . . . . . . . 2 Tool/Special . | . . . . . . . . . . . . . . . Average Slot Usage (%) 47 | . 36 63 69 47 6 11 37 60 67 56 33 41 46 63 Core 1 | . . . . . . . . 6 8 6 . . . . Hover 3 | . . . . 1 . . 5 3 . . . . 4 15 Flight 13 | . 2 33 27 14 . . 4 18 23 22 13 17 16 16 Device 5 | . . 5 9 7 . 3 3 5 7 8 4 4 4 9 Processor 9 | . . 5 9 7 6 7 14 15 14 10 9 8 8 8 Hackware 2 | . . . 6 6 . . 3 5 4 . . . . . Protection 1 | . . . . 3 . . . . . . . 2 4 4 Impact Weapon 2 | . 8 11 9 3 . . . 5 4 4 . . . . Peak Build Rating 138 | 2 5 8 11 20 1 10 47 87 116 113 72 75 93 138 Average Rating 49 | 1 3 7 10 10 1 5 29 80 111 84 59 74 79 118 On Entrance 36 | . 2 4 8 10 1 1 10 44 87 113 32 72 75 93 Avg Prop Armor Cover (%) 16 | 26 25 . . . . . 22 14 . 15 15 . 11 9 Naked Turns . | . . . . . . . . . . . . . . . Heaviest Build 47 | 1 4 7 7 11 . . 6 16 28 21 24 26 26 47 Greatest Support 75 | 3 8 12 12 16 3 12 33 60 75 75 44 44 44 64 Greatest Overweight (x) 1 | . 1 . . 1 . . . . . . . . . . Average Overweight (x) . | . . . . . . . . . . . . . . . Largest Inventory Capacity 5 | 5 5 5 5 5 5 5 5 5 5 5 5 5 5 5 Average Capacity 5 | 5 5 5 5 5 5 5 5 5 5 5 5 5 5 5 Most Carried 5 | . 2 1 1 2 2 3 4 5 4 4 4 3 3 4 Average Carried 2 | . . . . 1 2 2 3 4 3 4 2 3 3 3 Final Capacity 5 | 5 5 5 5 5 5 5 5 5 5 5 5 5 5 5 Final Carried 5 | . 2 . 1 2 2 3 3 5 4 4 3 3 3 4 Class Distribution -------------------- 41% | Sprinter 40% | Mutant 8% | Scavenger-Mutant 7% | Scout Dominant Class ---------------- Mutant | -10/Materials Scavenger-Mutant | -9/Materials Scavenger-Mutant | -8/Materials Mutant | -7/Factory Mutant | -6/Factory Mutant | -6/DSF Sprinter | -5/Factory Sprinter | -4/Factory Sprinter | -3/Research Sprinter | -3/Garrison Sprinter | -3/Research Sprinter | -2/Research Sprinter | -2/DSF Scout | -1/Access Resources | -11 -10 -9 -8 -7 -6 -6 -5 -4 -3 -3 -3 -2 -2 -1 ----------- Run | Yrd Mat Mat Mat Fac Fac DSF Fac Fac Res Gar Res Res DSF Acc Matter Collected 787 | 191 45 . . . . 4 106 51 . 265 . . . 125 Remotely . | . . . . . . . . . . . . . . . Salvage Created 218 | . 45 . . . . . 52 . . . . . . 121 Parts 16 | . 6 . . . . . 6 . . . . . . 4 Haulers Intercepted . | . . . . . . . . . . . . . . . Recyclers Shooed . | . . . . . . . . . . . . . . . Parts Field Recycled . | . . . . . . . . . . . . . . . Retrieved Matter . | . . . . . . . . . . . . . . . Parts Self-Destructed . | . . . . . . . . . . . . . . . Prevented . | . . . . . . . . . . . . . . . Parts Restored . | . . . . . . . . . . . . . . . Kills | -11 -10 -9 -8 -7 -6 -6 -5 -4 -3 -3 -3 -2 -2 -1 ------- Run | Yrd Mat Mat Mat Fac Fac DSF Fac Fac Res Gar Res Res DSF Acc Combat Hostiles Destroyed 6 | . 3 . . . . . 3 . . . . . . . Guns 3 | . 3 . . . . . . . . . . . . . AOE 2 | . . . . . . . 2 . . . . . . . Classes Destroyed 4 | . 1 . . . . . 1 . . . . . . 2 Builder 1 | . . . . . . . . . . . . . . 1 Recycler 1 | . . . . . . . . . . . . . . 1 Swarmer 3 | . 3 . . . . . . . . . . . . . Cutter 3 | . . . . . . . 3 . . . . . . . Best Kill Streak 3 | . 3 . . . . . 2 . . . . . . 2 Combat Bots Only 3 | . 3 . . . . . 2 . . . . . . . Max Kills in Single Turn 2 | . 1 . . . . . 2 . . . . . . 1 Gunslinging . | . . . . . . . . . . . . . . . Exploded 2 | . . . . . . . 2 . . . . . . . Melee . | . . . . . . . . . . . . . . . Uniques/NPCs Destroyed . | . . . . . . . . . . . . . . . Combat | -11 -10 -9 -8 -7 -6 -6 -5 -4 -3 -3 -3 -2 -2 -1 -------- Run | Yrd Mat Mat Mat Fac Fac DSF Fac Fac Res Gar Res Res DSF Acc Hostile Shots Fired 403 | . 61 4 5 75 . 6 55 4 38 142 . . 5 8 Missed 189 | . 21 1 3 35 . 3 27 2 21 71 . . 2 3 Hits 214 | . 40 3 2 40 . 3 28 2 17 71 . . 3 5 Melee 23 | . . . . 1 . . 16 . 4 2 . . . . Projectile 191 | . 40 3 2 39 . 3 12 2 13 69 . . 3 5 AOE 3 | . . . . . . . 2 . 1 . . . . . Critical Strikes 15 | . . 2 . 1 . . 5 . 3 3 . . . 1 Damage Taken 4238 | . 335 42 28 614 . 105 963 47 520 1286 . . 182 116 Core 1477 | . 106 14 . 336 . 105 520 23 44 282 . . . 47 Absorbed by Shields 19 | . . . . . . . . . 19 . . . . . Ignored by Resistances 122 | . . . . . . . . . . 122 . . . . Regen/Repaired (Parts) 55 | . . . . . . . 20 . . . . 35 . . Core Remaining (%) 82 | 100 57 96 100 52 . 87 48 98 . . 74 . 100 97 Volleys Fired 14 | . 8 . . 3 . . 1 . . . . . . 2 Largest 2 | . 1 . . 2 . . 1 . . . . . . 1 Hottest 80 | . 20 . . 80 . . 47 . . . . . . 58 Shots Fired 16 | . 7 . . 6 . . 1 . . . . . . 2 Gun 13 | . 7 . . 6 . . . . . . . . . . Cannon 3 | . . . . . . . 1 . . . . . . 2 Launcher . | . . . . . . . . . . . . . . . Special . | . . . . . . . . . . . . . . . Kinetic 10 | . 7 . . . . . 1 . . . . . . 2 Thermal 6 | . . . . 6 . . . . . . . . . . Explosive . | . . . . . . . . . . . . . . . Electromagnetic . | . . . . . . . . . . . . . . . Robot Hit Streak 4 | . 2 . . 4 . . . . . . . . . . Robot Miss Streak 2 | . 2 . . 1 . . . . . . . . . . Penetration Max . | . . . . . . . . . . . . . . . Secondary Targets . | . . . . . . . . . . . . . . . Shots Hit Robots 11 | . 4 . 1 4 . . . . . . . . . 2 Core Hits 7 | . 4 . . . . . 2 . . . . . . 1 Critical Kills . | . . . . . . . . . . . . . . . Critical Parts Destroyed . | . . . . . . . . . . . . . . . Critical Strikes . | . . . . . . . . . . . . . . . Melee Attacks 30 | . 1 3 1 9 . . 5 . 5 . . . 1 5 Impact 21 | . 1 3 1 9 . . 2 . 5 . . . . . Slashing 6 | . . . . . . . . . . . . . 1 5 Piercing 3 | . . . . . . . 3 . . . . . . . Sneak Attacks 2 | . . . . . . . . . . . . . . 2 Combat Hostiles . | . . . . . . . . . . . . . . . Follow-up Attacks . | . . . . . . . . . . . . . . . Damage Inflicted 611 | . 34 . 53 67 . . 244 . . . . . . 213 Guns 99 | . 34 . . 65 . . . . . . . . . . Cannons . | . . . . . . . . . . . . . . . Explosions 244 | . . . . . . . 244 . . . . . . . Melee 266 | . . . 53 . . . . . . . . . . 213 Ramming 2 | . . . . 2 . . . . . . . . . . Kinetic 34 | . 34 . . . . . . . . . . . . . Thermal 309 | . . . . 65 . . 244 . . . . . . . Explosive . | . . . . . . . . . . . . . . . Electromagnetic . | . . . . . . . . . . . . . . . Impact 53 | . . . 53 . . . . . . . . . . . Slashing 213 | . . . . . . . . . . . . . . 213 Piercing . | . . . . . . . . . . . . . . . Highest Corruption 6 | . 1 . . 3 . . 6 . . 4 4 . . . Average Corruption 3 | . 1 . . 2 . . 5 . . 3 4 . . . Corruption Purged . | . . . . . . . . . . . . . . . Corruption Blocked . | . . . . . . . . . . . . . . . Effects 6 | . 1 . . . . . 4 . . . 1 . . . Matter Fused 1 | . . . . . . . 1 . . . . . . . Heat Flow Errors 1 | . . . . . . . 1 . . . . . . . Energy Discharges 1 | . . . . . . . 1 . . . . . . . Data Loss (minor) 1 | . . . . . . . . . . . 1 . . . Data Loss (major) 1 | . . . . . . . 1 . . . . . . . Weapon Failures 1 | . 1 . . . . . . . . . . . . . Overload Shots . | . . . . . . . . . . . . . . . Overflow Damage 159 | . . . 3 . . . 85 . . . . . . 71 Projectiles . | . . . . . . . . . . . . . . . Explosions 85 | . . . . . . . 85 . . . . . . . Melee 74 | . . . 3 . . . . . . . . . . 71 Knockbacks . | . . . . . . . . . . . . . . . Impact . | . . . . . . . . . . . . . . . Kinetic . | . . . . . . . . . . . . . . . Secondary . | . . . . . . . . . . . . . . . Self-Inflicted Damage 114 | . . . . 1 . . 113 . . . . . . . Shots 1 | . . . . . . . 1 . . . . . . . Rammed 2 | . . . . 2 . . . . . . . . . . Targets Rammed 2 | . . . . 2 . . . . . . . . . . Kicked . | . . . . . . . . . . . . . . . Crushed . | . . . . . . . . . . . . . . . Highest Temperature 298 | . . 16 . . . . 117 . 88 298 . . . 20 Average Temperature 102 | . . 10 . . . . 65 . 34 171 . . . 12 Received Heat Transfer 454 | . 42 54 9 81 . . 63 18 18 169 . . . . Effects 3 | . . . . . . . . . . 3 . . . . Energy Bleed 3 | . . . . . . . . . . 3 . . . . Siege Activations . | . . . . . . . . . . . . . . . Martial Activations . | . . . . . . . . . . . . . . . Shielding Activations . | . . . . . . . . . . . . . . . Robots Disrupted . | . . . . . . . . . . . . . . . Combat Hostiles . | . . . . . . . . . . . . . . . Robots Corrupted . | . . . . . . . . . . . . . . . Combat Hostiles . | . . . . . . . . . . . . . . . Parts Fried 3 | . . . . . . . 3 . . . . . . . Impact Corruptions 1 | . . . 1 . . . . . . . . . . . Robots Melted . | . . . . . . . . . . . . . . . Combat Hostiles . | . . . . . . . . . . . . . . . Parts Melted . | . . . . . . . . . . . . . . . Heat Transferred 348 | . . . . 148 . . 200 . . . . . . . Parts Sabotaged . | . . . . . . . . . . . . . . . Parts Stolen . | . . . . . . . . . . . . . . . Parts Stripped . | . . . . . . . . . . . . . . . Power Chain Reactions 1 | . . . . . . . 1 . . . . . . . Alert | -11 -10 -9 -8 -7 -6 -6 -5 -4 -3 -3 -3 -2 -2 -1 ------- Run | Yrd Mat Mat Mat Fac Fac DSF Fac Fac Res Gar Res Res DSF Acc Maximum Alert Level 1 | . . . . . . . 1 . . 1 . . . . Low Security (%) 93 | 100 100 100 100 100 100 100 90 100 100 28 100 100 100 100 Level 1 6 | . . . . . . . 9 . . 71 . . . . Level 2 . | . . . . . . . . . . . . . . . Level 3 . | . . . . . . . . . . . . . . . Level 4 . | . . . . . . . . . . . . . . . Level 5 . | . . . . . . . . . . . . . . . High Security . | . . . . . . . . . . . . . . . Max Security . | . . . . . . . . . . . . . . . Peak Influence 297 | . 91 40 21 138 37 11 217 102 160 297 158 98 66 51 Initial 158 | . . 25 13 . 37 11 5 102 42 129 158 83 58 39 Average 59 | . 24 32 9 56 27 11 66 93 24 221 153 85 54 32 Influence Increases 1371 | . 121 17 8 241 . . 326 . 228 303 . 15 18 94 Destroy 0b10 Robot/C 200 | . 60 . . . . . 60 . . 80 . . . . Destroy 0b10 Robot/NC 10 | . . . . . . . . . . . . . . 10 Destroy Leader 20 | . 10 . . . . . 10 . . . . . . . Allied During Kill 8 | . . . . . . . . . . 8 . . . . Successful Hack 146 | . 20 . 8 54 . . . . 40 . . . . 24 Select Force Hacks 50 | . . . . . . . 50 . . . . . . . Disable Machine 45 | . . 15 . . . . 15 . . . . . . 15 Anti-Garrison Action 50 | . . . . . . . . . . 50 . . . . Destroy Structure 92 | . 1 2 . 7 . . 26 . 8 . . . 3 45 Partial Spotted 90 | . . . . 45 . . 15 . . 15 . 15 . . Lose Combat Pursuer 660 | . 30 . . 135 . . 150 . 180 150 . . 15 . Influence Decreases 1330 | . 60 46 40 163 61 6 126 129 138 193 134 85 30 119 Entered New Map 536 | . . 36 19 . 41 6 6 109 40 43 124 65 20 27 Time Decay 433 | . 40 10 20 83 20 . 80 20 70 . 10 20 . 60 Lost Part 299 | . 10 . 1 80 . . 40 . 8 130 . . 10 20 Lost Ally 62 | . 10 . . . . . . . 20 20 . . . 12 Squads Dispatched 19 | . 1 . 2 5 . . 5 . 3 . . 1 . 2 Investigation 13 | . 1 . 2 4 . . 3 . 1 . . 1 . 1 Extermination 4 | . . . . 1 . . 1 . 1 . . . . 1 Reinforcement 2 | . . . . . . . 1 . 1 . . . . . Assault . | . . . . . . . . . . . . . . . Garrison . | . . . . . . . . . . . . . . . Intercept . | . . . . . . . . . . . . . . . Searches Triggered . | . . . . . . . . . . . . . . . Construction Impeded . | . . . . . . . . . . . . . . . Haulers Reinforced . | . . . . . . . . . . . . . . . Active Scanning Responses . | . . . . . . . . . . . . . . . Cargo Convoy Interrupts . | . . . . . . . . . . . . . . . Stealth | -11 -10 -9 -8 -7 -6 -6 -5 -4 -3 -3 -3 -2 -2 -1 --------- Run | Yrd Mat Mat Mat Fac Fac DSF Fac Fac Res Gar Res Res DSF Acc Distress Signals 3 | . 2 . . . . . . . 1 . . . . . Communications Jammed . | . . . . . . . . . . . . . . . Distress Signals . | . . . . . . . . . . . . . . . Times Spotted 124 | . 8 7 6 25 . 1 18 3 17 31 . . 2 6 Peak Tracking Total 22 | . 8 8 4 12 . 1 11 3 16 22 . . 2 8 Tactical Retreats 18 | . 2 . . 5 . . 4 . 2 4 . . 1 . Traps | -11 -10 -9 -8 -7 -6 -6 -5 -4 -3 -3 -3 -2 -2 -1 ------- Run | Yrd Mat Mat Mat Fac Fac DSF Fac Fac Res Gar Res Res DSF Acc Traps Triggered 4 | . . . . . 1 . . . 1 1 . 1 . . Indirectly . | . . . . . . . . . . . . . . . Trap Hack Attempts . | . . . . . . . . . . . . . . . Triggered . | . . . . . . . . . . . . . . . Disarmed . | . . . . . . . . . . . . . . . Reprogrammed . | . . . . . . . . . . . . . . . Reused . | . . . . . . . . . . . . . . . Traps Extracted . | . . . . . . . . . . . . . . . Installed . | . . . . . . . . . . . . . . . Triggered . | . . . . . . . . . . . . . . . Machines | -11 -10 -9 -8 -7 -6 -6 -5 -4 -3 -3 -3 -2 -2 -1 ---------- Run | Yrd Mat Mat Mat Fac Fac DSF Fac Fac Res Gar Res Res DSF Acc Machines Disabled 3 | . . 1 . . . . 1 . . . . . . 1 Max in Single Turn 1 | . . 1 . . . . 1 . . . . . . 1 Energy Cycler 1 | . . . . . . . . . . . . . . 1 Machines Repaired . | . . . . . . . . . . . . . . . Machines Dismantled . | . . . . . . . . . . . . . . . Machines Sabotaged . | . . . . . . . . . . . . . . . Overloaded Fab Kills 1 | . . . . . . . 1 . . . . . . . Hacking | -11 -10 -9 -8 -7 -6 -6 -5 -4 -3 -3 -3 -2 -2 -1 --------- Run | Yrd Mat Mat Mat Fac Fac DSF Fac Fac Res Gar Res Res DSF Acc Machines Accessed 24 | . 2 . 2 5 1 . 3 . 5 1 . 2 . 3 Terminals 15 | . 2 . 2 3 1 . . . 4 1 . 1 . 1 Fabricators 1 | . . . . . . . 1 . . . . . . . Repair Stations 5 | . . . . 2 . . 2 . . . . 1 . . Recycling Units . | . . . . . . . . . . . . . . . Scanalyzers 2 | . . . . . . . . . . . . . . 2 Garrison Access 1 | . . . . . . . . . 1 . . . . . Total Hacks 71 | . 10 . 7 17 1 . 5 . 13 5 . 8 . 5 Successful 23 | . 6 . 2 4 1 . 2 . 5 . . 2 . 1 Failed 48 | . 4 . 5 13 . . 3 . 8 5 . 6 . 4 Catastrophic 10 | . 2 . . 1 . . 2 . . 2 . 1 . 2 Database Lockouts . | . . . . . . . . . . . . . . . Manual 32 | . 9 . 5 8 . . 2 . 7 . . 1 . . Terminals 52 | . 10 . 7 10 1 . . . 12 5 . 5 . 2 Fabricators 1 | . . . . . . . 1 . . . . . . . Repair Stations 14 | . . . . 7 . . 4 . . . . 3 . . Recycling Units . | . . . . . . . . . . . . . . . Scanalyzers 3 | . . . . . . . . . . . . . . 3 Garrison Access 1 | . . . . . . . . . 1 . . . . . Terminal Hacks 8 | . 3 . 1 1 1 . . . 1 . . 1 . . Prototype ID Bank 1 | . 1 . . . . . . . . . . . . . Open DSF 2 | . . . . . 1 . . . . . . 1 . . Branch Access Points 1 | . . . 1 . . . . . . . . . . . Locate Traps 1 | . . . . 1 . . . . . . . . . . Zone Layout 3 | . 2 . . . . . . . 1 . . . . . Fabricator Hacks . | . . . . . . . . . . . . . . . Repair Station Hacks 1 | . . . . 1 . . . . . . . . . . Refit 1 | . . . . 1 . . . . . . . . . . Recycling Unit Hacks . | . . . . . . . . . . . . . . . Scanalyzer 1 | . . . . . . . . . . . . . . 1 Retrieve Study 1 | . . . . . . . . . . . . . . 1 Garrison Access Hacks 1 | . . . . . . . . . 1 . . . . . Unlock Access 1 | . . . . . . . . . 1 . . . . . Unauthorized Hacks 12 | . 3 . 1 2 . . 2 . 3 . . 1 . . Terminals 9 | . 3 . 1 2 . . . . 3 . . . . . Assimilate 3 | . 1 . . . . . . . 2 . . . . . Botnet 6 | . 2 . 1 2 . . . . 1 . . . . . Fabricators 1 | . . . . . . . 1 . . . . . . . Overload 1 | . . . . . . . 1 . . . . . . . Repair Stations 2 | . . . . . . . 1 . . . . 1 . . Patch 2 | . . . . . . . 1 . . . . 1 . . Recycling Units . | . . . . . . . . . . . . . . . Scanalyzers . | . . . . . . . . . . . . . . . Garrison Access . | . . . . . . . . . . . . . . . Data Cores Recovered . | . . . . . . . . . . . . . . . Used . | . . . . . . . . . . . . . . . Hacking Detections 21 | . 2 . 2 5 . . 2 . 4 1 . 2 . 3 Full Trace Events 11 | . 1 . 2 4 . . 1 . 1 1 . . . 1 Feedback Events 2 | . 1 . . . . . . . . 1 . . . . Corruption 1 | . 1 . . . . . . . . . . . . . Hackware Fried 1 | . . . . . . . . . . 1 . . . . Feedback Blocked . | . . . . . . . . . . . . . . . Robot Schematics Acquired . | . . . . . . . . . . . . . . . Robots Built . | . . . . . . . . . . . . . . . Authchips . | . . . . . . . . . . . . . . . Time . | . . . . . . . . . . . . . . . Total Robot Build Rating . | . . . . . . . . . . . . . . . Part Schematics Acquired . | . . . . . . . . . . . . . . . Parts Built . | . . . . . . . . . . . . . . . Authchips . | . . . . . . . . . . . . . . . Time . | . . . . . . . . . . . . . . . Total Part Build Rating . | . . . . . . . . . . . . . . . Part Studies Acquired 1 | . . . . . . . . . . . . . . 1 Parts Repaired . | . . . . . . . . . . . . . . . Time . | . . . . . . . . . . . . . . . Parts Recycled . | . . . . . . . . . . . . . . . Recycled Matter . | . . . . . . . . . . . . . . . Retrieved Matter . | . . . . . . . . . . . . . . . Retrieved Components . | . . . . . . . . . . . . . . . Parts Scanalyzed . | . . . . . . . . . . . . . . . Part Schematics Acquired . | . . . . . . . . . . . . . . . Parts Damaged . | . . . . . . . . . . . . . . . Bothacking | -11 -10 -9 -8 -7 -6 -6 -5 -4 -3 -3 -3 -2 -2 -1 ------------ Run | Yrd Mat Mat Mat Fac Fac DSF Fac Fac Res Gar Res Res DSF Acc Used RIF Installer . | . . . . . . . . . . . . . . . Robots Hacked . | . . . . . . . . . . . . . . . Non-combat . | . . . . . . . . . . . . . . . Combat . | . . . . . . . . . . . . . . . Robot Hacks Applied . | . . . . . . . . . . . . . . . Relay Couplers Released . | . . . . . . . . . . . . . . . Fabnet Peak Effective % . | . . . . . . . . . . . . . . . Robots Rewired . | . . . . . . . . . . . . . . . Allies Hacked . | . . . . . . . . . . . . . . . Hacks Repelled . | . . . . . . . . . . . . . . . Allies | -11 -10 -9 -8 -7 -6 -6 -5 -4 -3 -3 -3 -2 -2 -1 -------- Run | Yrd Mat Mat Mat Fac Fac DSF Fac Fac Res Gar Res Res DSF Acc Total Allies 4 | . 1 . . . . . . . 2 1 . . . . Largest Group 2 | . 1 . . . . . . . 2 1 . . . . Highest-Rated Group 95 | . 10 . . . . . . . 71 95 . . . . Highest-Rated Ally 95 | . 10 . . . . . . . 45 95 . . . . Total Orders 3 | . . . . . . . . . . . . . . 3 EXPLORE 3 | . . . . . . . . . . . . . . 3 Ally Attacks 3 | . . . . . . . . . . 3 . . . . Total Damage 166 | . . . . . . . . . . 166 . . . . Kills 4 | . . . . . . . . . . 4 . . . . Allies Corrupted . | . . . . . . . . . . . . . . . Allies Melted . | . . . . . . . . . . . . . . . Intel | -11 -10 -9 -8 -7 -6 -6 -5 -4 -3 -3 -3 -2 -2 -1 ------- Run | Yrd Mat Mat Mat Fac Fac DSF Fac Fac Res Gar Res Res DSF Acc Active Infowar (turns) 833 | . . 26 60 235 . . 3 . 165 88 36 47 29 144 Sensors 833 | . . 26 60 235 . . 3 . 165 88 36 47 29 144 Structural 118 | . . . . . . . . . . . . . . 118 Robot Analysis Total . | . . . . . . . . . . . . . . . Derelict Logs Recovered . | . . . . . . . . . . . . . . . Drone Launches 3 | . . . . . . . . . . . . . . 3 Drone Recoveries 1 | . . . . . . . . . . . . . . 1 Exploration | -11 -10 -9 -8 -7 -6 -6 -5 -4 -3 -3 -3 -2 -2 -1 ------------- Run | Yrd Mat Mat Mat Fac Fac DSF Fac Fac Res Gar Res Res DSF Acc Turns Passed 1349 | 15 85 38 60 239 54 46 254 49 165 88 36 47 29 144 Spaces Moved 3062 | 25 98 70 160 508 78 83 527 110 515 297 74 128 59 330 Core 425 | 25 84 . . 55 78 83 100 . . . . . . . Treads . | . . . . . . . . . . . . . . . Legs . | . . . . . . . . . . . . . . . Wheels . | . . . . . . . . . . . . . . . Hover 17 | . . . . 10 . . 7 . . . . . . . Flight 2620 | . 14 70 160 443 . . 420 110 515 297 74 128 59 330 Fastest Speed 18 | 50 37 34 34 34 50 50 24 28 28 18 32 32 32 30 Average Speed 35 | 50 61 34 34 38 50 50 37 30 28 25 37 32 33 32 Slowest Speed 100 | 50 100 34 34 100 50 50 60 34 28 40 40 32 35 35 Overloaded Moves . | . . . . . . . . . . . . . . . Propulsion Burnouts . | . . . . . . . . . . . . . . . Robots Hopped 64 | . 3 . 7 10 . . 9 1 10 22 . . 1 1 Potential Cave-ins . | . . . . . . . . . . . . . . . Cave-ins Triggered . | . . . . . . . . . . . . . . . Exploration Rate (%) 25 | 3 33 12 23 25 2 86 19 5 21 47 3 7 82 18 Regions Visited 14 Branch Regions . Pre-discovered Areas . | . . . . . . . . . . . . . . . Known Exits Taken 8 | . . 1 1 1 1 . 1 . 1 . 1 1 . . Unknown Exits Taken 3 | 1 1 . . . . . . 1 . . . . . . Scrap Searched . | . . . . . . . . . . . . . . . Spaces Dug 22 | . 1 2 . 7 . . 3 . 4 . . . 1 4 Terrain Destroyed 42 | . 1 2 . 7 . . 13 . 4 . . . 1 14 Melee 20 | . 1 2 . 7 . . 2 . 4 . . . 1 3 Projectile 2 | . . . . . . . 1 . . . . . . 1 AOE 20 | . . . . . . . 10 . . . . . . 10 Terrain Rammed . | . . . . . . . . . . . . . . . Walls Destroyed . | . . . . . . . . . . . . . . . Machines Disabled . | . . . . . . . . . . . . . . . Actions | -11 -10 -9 -8 -7 -6 -6 -5 -4 -3 -3 -3 -2 -2 -1 --------- Run | Yrd Mat Mat Mat Fac Fac DSF Fac Fac Res Gar Res Res DSF Acc Total 3161 | 26 109 76 155 519 92 85 556 123 514 282 80 132 62 350 Wait 22 | . . . . 1 . . 11 3 . 4 . 3 . . Move 2927 | 24 91 69 146 488 77 82 508 108 495 256 73 127 56 327 Hop 55 | . 3 . 6 9 . . 9 . 10 16 . . 1 1 Pick Up 9 | . 2 . 1 . . 1 . 2 1 . 1 . . 1 Fast Attach 56 | 2 3 2 1 1 . 2 16 4 2 5 3 2 4 9 Attach 11 | . . 2 . 1 . . 3 2 1 . 2 . . . Detach 5 | . . . . 2 . . 3 . . . . . . . Swap 2 | . . . . . . . . . . . . . . 2 Drop 12 | . 1 . . 3 . . . 4 . . 1 . . 3 Fire 14 | . 8 . . 3 . . 1 . . . . . . 2 Melee 30 | . 1 3 1 9 . . 5 . 5 . . . 1 5 Ram 2 | . . . . 2 . . . . . . . . . . Kick . | . . . . . . . . . . . . . . . Crush . | . . . . . . . . . . . . . . . Escape Stasis 16 | . . . . . 15 . . . . 1 . . . . Rewire . | . . . . . . . . . . . . . . . Trap . | . . . . . . . . . . . . . . . Miscellaneous . | . . . . . . . . . . . . . . . Route ------- -11/Scrapyard -10/Materials -9/Materials -8/Materials -7/Factory -6/Factory -6/DSF -5/Factory -4/Factory -3/Research (discovered 2 exits: *Arm / Gar) -3/Garrison (discovered 3 exits: *Res x3) -3/Research -2/Research -2/DSF -1/Access To Epsilon Eridani History --------- Turn | Location | Event 9 | -11/Scrapyard | Discovered new exit (range 16) 16 | -11/Scrapyard | Entered Materials 58 | -10/Materials | Discovered new exit (range 16) 101 | -10/Materials | Entered another Materials area 101 | -9/Materials | Evolved 2 slots: Propulsion x1, Utility x1 137 | -9/Materials | Discovered new exit (range 6) 139 | -9/Materials | Identified exit to Materials 139 | -9/Materials | Entered another Materials area 139 | -8/Materials | Evolved 2 slots: Propulsion x2 198 | -8/Materials | Discovered new exit (range 5) 199 | -8/Materials | Identified exit to Factory 199 | -8/Materials | Entered Factory 199 | -7/Factory | Evolved 2 slots: Propulsion x1, Utility x1 435 | -7/Factory | Discovered new exit (range 6) 438 | -7/Factory | Identified exit to Factory 438 | -7/Factory | Entered another Factory area 438 | -6/Factory | Evolved 2 slots: Power x1, Propulsion x1 465 | -6/Factory | Lost 6 parts (1p3n2u) 492 | -6/Factory | Identified exit to DSF 492 | -6/Factory | Entered DSF 517 | -6/DSF | Additional patrols routed to DSF 522 | -6/DSF | Build established: Mutant 530 | -6/DSF | Discovered new exit (range 16) 537 | -6/DSF | Identified exit to Factory 538 | -6/DSF | Entered Factory 538 | -5/Factory | Evolved 2 slots: Propulsion x1, Utility x1 727 | -5/Factory | Lost 5 parts (4n1w) 744 | -5/Factory | Spotted B-75 Beast 778 | -5/Factory | Discovered new exit (range 16) 780 | -5/Factory | Core integrity fell below 50% 791 | -5/Factory | Identified exit to Factory 792 | -5/Factory | Entered another Factory area 792 | -4/Factory | Evolved 2 slots: Utility x2 835 | -4/Factory | Discovered new exit (range 12) 841 | -4/Factory | Entered Research 841 | -3/Research | Evolved 2 slots: Propulsion x2 856 | -3/Research | Discovered new exit (range 2) 856 | -3/Research | Identified exit to Armory 887 | -3/Research | Found Prototype Device 887 | -3/Research | Identified Exp. Thermal Shield 946 | -3/Research | Build established: Sprinter 998 | -3/Research | Spotted B-86 Titan 1006 | -3/Research | Identified exit to Garrison 1006 | -3/Research | Entered Garrison 1011 | -3/Garrison | System Shield fried by hacking feedback 1017 | -3/Garrison | Spotted B-86 Titan 1048 | -3/Garrison | Discovered new exit (range 10) 1050 | -3/Garrison | Identified exit to Research 1050 | -3/Garrison | Attempted to access garrison exit controls, blocked by remote lockdown 1074 | -3/Garrison | Discovered exit to Research (range 10) 1075 | -3/Garrison | Attempted to access garrison exit controls, blocked by remote lockdown 1081 | -3/Garrison | Spotted Executioner 1091 | -3/Garrison | Discovered exit to Research (range 8) 1094 | -3/Garrison | Entered Research 1122 | -3/Research | Lost 13 parts (2p8n3u) 1128 | -3/Research | Discovered new exit (range 6) 1130 | -3/Research | Identified exit to Research 1130 | -3/Research | Entered another Research area 1130 | -2/Research | Evolved 2 slots: Propulsion x2 1177 | -2/Research | Identified exit to DSF 1177 | -2/Research | Entered DSF 1191 | -2/DSF | Discovered new exit (range 14) 1204 | -2/DSF | Additional patrols routed to DSF 1205 | -2/DSF | Identified exit to Access 1206 | -2/DSF | Entered Access 1206 | -1/Access | Evolved 2 slots: Utility x2 1328 | -1/Access | Energy Cycler disabled 1349 | -1/Access | Discovered new exit (range 6) 1350 | -1/Access | Identified exit to Surface 1350 | *** | Escaped! Last Messages --------------- 01313_ K-01 Serf cleans the Wave Collapse Detector. 01317_ Wave Collapse Detector explodes. 01317_ K-01 Serf destroyed. 01317_ U-05 Engineer destroyed. 01317_ K-01 Serf destroyed. 01317_ Drone destroyed. 01324_ Dropped Greatsword. 01324_ Acquired Enh. Hardcell Cannon. 01328_ ALERT: Power surge detected, dispatching additional patrols. 01328_ Energy Cycler explodes. 01330_ Dropped Enh. Hardcell Cannon. 01330_ Acquired Enh. Hardcell Cannon. 01332_ Dropped Enh. Hardcell Cannon. 01332_ Acquired Greatsword. 01334_ K-01 Serf collects debris. 01349_ The Access Shell folds into the floor. 01349_ EXIT=FOUND 01350_ EXIT=IDENTIFIED: SURFACE Map ----- +----------------------------------------------------+ | ??????????? !! ##?????????????????????????????? | | ??????????? ##?????????????????????????????? | | ??????????? ##?????????????????????????????? | | ?????????"""" ##?????????????????????????????? | | ????????""""" ##?????????????????????????????? | | ????????""""" ##?????????????????????????????? | | ??????? """"" ##?????????????????????????????? | | ?????????"""" ##?????????????????????????????? | | ??????????? ##?????????????????????????????? | | ???### ####################???????????? | | ??? ###########+######################???????????? | | ??? # ???????????? | | ??? # ????????????? | | ??? # ###### ####### ""##????????????????? | | ??? # ###### ####### ""##????????????????? | | ??????????## ##???## ""##????????????????? | | ??????????## ##???## T##????????????????? | | ??????????## ##???## ""##????????????????? | | # ###### ##??### ""###???????????????? | | ##+##+###### ##??### ""###???????????????? | | ## # ##??## ##???????????????? | | ## # ##??### ###???????????????? | | ## # ##??### ###???????????????? | | ## + ##???## ##????????????????? | | ## # ##???## ##????????????????? | | ## * # ##???## @" ##????????????????? | | ## # ##???## "" ##????????????????? | | ## # ##???## ##????????????????? | | ############ ##???## ##????????????????? | | ############ ##???## ##????????????????? | | ############ ##???##""""""""""##????????????????? | | # #######w ##???##"????????"##????????????????? | | ##?????????????????????????????????? | | " ! ###????????????????????????????????? | | # ###+########????????????????????????????????? | | ## ?## ] ##????????????????????????????????? | | ## ?## ##????????????????????????????????? | | ????##[ " ##????????????????????????????????? | | ????## """ ##????????????????????????????????? | | ????## """ ##????????????????????????????????? | | ????## " [ ##????????????????????????????????? | | ????## ##????????????????????????????????? | | ??? ## ###???????????????????????????????? | | ??? ###""""" """##???????????????????????????????? | | ??? / # ???????????????????????????????? | | ??? + " ???????????????????????????????? | | ??? # " ???????????????????????????????? | | ??? # " ??????????????????????????????? | | ??? + ## ??????????????????????????????? | | ???## "#+??????????????????????????????? | +----------------------------------------------------+ Best States ------------- Heat Dissipation 52 Energy Generation 41 Energy Capacity 340 Matter Stores 300 Matter Capacity 300 Sight Range 16 Robot Scan Range 16 Terrain Scan Density 10 Additional Mass Support 9 Armor Coverage 225 Resistance: TH 30 Power Shielding 66 Evasion (%) 66 Melee Accuracy 6 Core Analysis 6 Offensive Hacking 10 Defensive Hacking 10 Item Schematics ----------------- None Robot Schematics ------------------ None Fabricated ------------ Nothing Repaired ---------- Nothing Studied --------- Field Propulsion Array | -1/Access | Hacked Alien Tech Used ----------------- None Achievements -------------- None Challenges ------------ None Game ------ Seed ReflexAerolevWartreads Manual? 0 Play Time 00:39:54 Cumulative 741.2 hours Start 2025.12.04 @ 14:19:58 End 2025.12.04 @ 15:59:01 Sessions 3 Manual Loads 0 Difficulty Rogue Special Mode None Game No. 315 Rogue 315 Adventurer 0 Explorer 0 Win Type 0 Total 78 Types 40/5/13/6/6/1/1/3/0/3 Lore% 97 Gallery% 90 Achievement% 82 Wizard Run 0 Options --------- Layout 1 ASCII 0 Keyboard 0 Movement Numpad Keybinds 0 Fullscreen 1 Font 24/Smallcaps Map View 50x35 Zoom Use 0% Tactical HUD 1 Map Filters NONE Filters NONE Steam 1 RUN: f102db07-6288-467f-802b-afe1626fcdd2